bitfinex/quotes_ETHUSD_20251023
["timestamp","ask_amount","ask_price","bid_price","bid_amount"]
[1761236924481,0.1298,3876.2,3876.1,3.17621279]
[1761236924679,0.1298,3876.2,3876.1,3.24679279]
[1761236924978,0.1298,3876.2,3876.1,3.08679279]
[1761236929877,0.1298,3876.2,3876.1,3.52309279]
[1761236932382,0.1298,3876.2,3876.1,4.13340165]
[1761236932383,0.001,3876.2,3876.1,4.13340165]
[1761236936910,0.001,3876.2,3876.1,5.68860165]
[1761236937078,0.001,3876.2,3876.1,5.81740165]
[1761236938467,0.001,3876.2,3876.1,9.10740165]
[1761236939303,0.001,3876.2,3876.1,5.81740165]
[1761236939605,0.1298,3876.2,3876.1,4.57441279]
[1761236939768,0.1298,3876.2,3876.1,5.08129279]
[1761236942006,0.1298,3876.2,3876.1,3.08679279]
[1761236943400,0.1298,3876.2,3876.1,3.52609279]
[1761236944381,0.1298,3876.2,3876.1,3.08679279]
[1761236946411,0.1298,3876.2,3875.7,0.1288]
[1761236946623,0.227,3875.8,3874.4,0.1695]
[1761236946771,0.227,3875.8,3874.3,1.3798736]
[1761236946772,0.1288,3874.7,3874.6,0.002]
[1761236946969,0.1288,3874.7,3874.6,2.58289422]
[1761236947374,0.1288,3874.7,3874.6,3.08977422]
[1761236947820,0.1288,3874.7,3874.6,0.002]
[1761236947821,0.68467188,3874.7,3874.6,0.002]
[1761236948015,0.1288,3874.7,3874.6,2.58291157]
[1761236948673,0.1288,3874.7,3874.6,3.08979157]
[1761236949987,0.55587188,3875.1,3874.6,3.08979157]
[1761236949988,0.69092957,3874.8,3874.6,0.002]
[1761236950319,0.64433759,3874.7,3874.6,0.002]
[1761236950518,1.20020947,3874.7,3874.6,0.002]
[1761236950928,0.64433759,3874.7,3874.6,0.002]
[1761236951091,1.20020947,3874.7,3874.6,0.002]
[1761236951292,1.33702968,3874.7,3874.6,0.002]
[1761236951998,1.20020947,3874.7,3874.6,0.002]
[1761236952400,0.64433759,3874.7,3874.6,0.002]
[1761236952811,3.85987188,3874.7,3874.6,0.002]
[1761236953013,0.55587188,3874.7,3874.6,0.002]
[1761236953185,0.55587188,3874.9,3874.8,3.08765836]
[1761236953388,0.55587188,3875.3,3875.2,2.58051197]
[1761236953589,1.34789209,3875.8,3874.8,0.50688]
[1761236953834,3.8575062,3875.7,3875.3,2.58042095]
[1761236953996,0.5535062,3875.6,3875.3,2.58042095]
[1761236954392,0.9817062,3875.6,3875.1,2.58052066]
[1761236954691,0.4282,3875.5,3874.9,0.50688]
[1761236954898,3.304,3875.4,3875.1,2.58051563]
[1761236955103,3.304,3875.4,3874.8,0.50688]
[1761236955501,0.4282,3875.3,3874.6,0.002]
[1761236955718,0.98164063,3875.3,3874.6,0.002]
[1761236956077,0.98164063,3875.3,3874.6,0.50888]
[1761236956328,0.4282,3875.2,3874.7,2.58083883]
[1761236956512,0.4282,3875.2,3874.6,3.08977056]
[1761236957809,0.4282,3875.2,3874.6,0.002]
[1761236958013,0.69269209,3875.1,3874.6,0.002]
[1761236958203,0.4282,3875.0,3874.6,0.002]
[1761236958804,0.69269209,3874.9,3874.6,0.002]
[1761236959201,0.4282,3874.8,3874.6,0.002]
[1761236959407,3.47043327,3874.7,3874.6,0.002]
[1761236959602,4.0238739,3874.7,3874.6,0.002]
[1761236959807,4.4520739,3874.7,3874.6,0.002]
[1761236960108,4.5808739,3874.7,3874.6,0.002]
[1761236962717,4.1526739,3874.7,3874.6,0.002]
[1761236963538,3.98324063,3874.7,3874.6,0.002]
[1761236963744,3.4298,3874.7,3874.6,0.002]
[1761236964430,0.1288,3874.7,3874.6,2.58291157]
[1761236964618,3.4298,3874.7,3874.6,0.002]
[1761236965755,3.4298,3874.7,3874.6,2.58291157]
[1761236966109,3.4298,3874.7,3874.6,0.002]
[1761236967210,3.4298,3874.7,3874.6,2.58291157]
[1761236968143,3.4298,3874.7,3874.6,0.002]
[1761236968328,3.98288293,3874.7,3874.6,2.58291157]
[1761236968908,3.98088293,3874.7,3874.6,2.58291157]
[1761236969139,0.68188293,3874.7,3874.6,2.58291157]
[1761236969340,3.4308,3874.7,3874.6,0.002]
[1761236969527,3.98388293,3874.7,3874.6,0.002]
[1761236971152,1.11008293,3874.7,3874.6,0.002]
[1761236971355,4.41108293,3874.7,3874.6,0.002]
[1761236972546,3.98288293,3874.7,3874.6,0.002]
[1761236972742,0.68188293,3874.7,3874.6,2.58291157]
[1761236972959,3.4288,3874.7,3874.6,2.58291157]
[1761236973155,3.98188293,3874.7,3874.6,2.58291157]
[1761236973559,3.98188293,3874.7,3874.6,0.002]
[1761236974536,3.98188293,3874.7,3874.6,2.58291157]
[1761236974962,0.68188293,3874.7,3874.6,2.58291157]
[1761236975165,3.4278,3874.7,3874.6,3.04851157]
[1761236975354,3.98088293,3874.7,3874.6,3.04851157]
[1761236975670,3.98088293,3874.7,3874.6,2.58291157]
[1761236976372,3.98088293,3874.7,3874.6,0.002]
[1761236976569,3.98088293,3874.7,3874.6,2.58291157]
[1761236976876,0.68188293,3874.7,3874.6,2.58291157]
[1761236977035,3.98088293,3874.7,3874.6,2.58291157]
[1761236977456,3.98088293,3874.7,3874.6,0.002]
[1761236977661,4.89545735,3874.7,3874.6,0.002]
[1761236977843,4.89545735,3874.7,3874.6,2.58291157]
[1761236978762,3.98088293,3874.7,3874.6,2.58291157]
[1761236979172,0.68188293,3874.7,3874.6,2.58291157]
[1761236979477,3.97888293,3874.7,3874.6,2.58291157]
[1761236979974,3.97788293,3874.7,3874.6,2.58291157]
[1761236981636,0.68188293,3874.7,3874.6,3.08979157]
[1761236981837,0.68188293,3874.7,3874.6,3.55539157]
[1761236982378,0.68188293,3874.7,3874.6,4.16923513]
[1761236982673,0.68188293,3874.7,3874.6,3.08979157]
[1761236983372,0.68188293,3874.7,3874.6,0.002]
[1761236983560,2.02465735,3874.7,3874.6,0.002]
[1761236984942,1.59645735,3874.7,3874.6,0.002]
[1761236985145,0.68188293,3874.7,3874.6,2.58291157]
[1761236985854,3.97688293,3874.7,3874.6,2.58291157]
[1761236987279,0.55308293,3874.7,3874.6,4.07198595]
[1761236987579,0.55308293,3875.0,3874.9,3.08759176]
[1761236987979,0.55308293,3875.0,3874.9,3.55319176]
[1761236988276,0.55308293,3875.2,3875.1,2.58057856]
[1761236988646,0.55308293,3875.2,3875.1,3.20617856]
[1761236989264,0.55308293,3875.2,3875.1,2.74057856]
[1761236989949,0.55308293,3875.2,3875.1,3.20617856]
[1761236990878,0.55308293,3875.2,3875.1,2.74057856]
[1761236991782,0.55308293,3875.2,3875.1,3.71305856]
[1761236991985,0.55308293,3875.4,3875.3,3.08732538]
[1761236992283,0.55308293,3875.4,3875.1,7.20504937]
[1761236992284,0.1288,3875.7,3875.6,2.58024563]
[1761236992484,0.1288,3875.7,3875.6,3.14698941]
[1761236992682,0.1288,3875.7,3875.6,2.58024563]
[1761236993585,0.55655711,3875.9,3875.8,3.08699249]
[1761236993799,0.68535711,3875.9,3875.8,3.08699249]
[1761237000280,1.33835711,3875.9,3875.8,3.08699249]
[1761237000485,1.33835711,3875.9,3875.1,0.002]
[1761237000675,0.1288,3875.2,3875.1,0.002]
[1761237000874,0.1288,3875.2,3875.1,1.12158]
[1761237001123,2.552,3875.8,3875.7,3.08705906]
[1761237001324,3.23635711,3875.8,3875.7,3.08705906]
[1761237003127,0.68435711,3875.8,3875.7,3.08705906]
[1761237003283,0.68435711,3875.8,3875.7,3.53975906]
[1761237003284,0.1288,3875.8,3875.7,3.53975906]
[1761237003482,0.68435711,3875.8,3875.7,3.53975906]
[1761237003795,0.1288,3875.8,3875.7,3.53975906]
[1761237003992,0.1288,3875.8,3875.7,3.08705906]
[1761237004201,0.1288,3875.8,3875.7,3.53975906]
[1761237005095,0.1288,3875.8,3875.7,3.08705906]
[1761237005707,0.1288,3875.8,3875.7,3.53975906]
[1761237005921,0.001,3875.9,3875.8,3.08699249]
[1761237006208,0.001,3875.9,3875.8,3.53969249]
[1761237006814,0.001,3875.9,3875.8,6.8616916]
[1761237009121,0.001,3875.9,3875.8,11.73889071]
[1761237009422,0.001,3875.9,3875.8,8.67251311]
[1761237009619,0.001,3875.9,3875.8,10.31908682]
[1761237010601,0.001,3875.9,3875.8,7.9641916]
[1761237012436,0.4541,3875.9,3875.8,6.4089916]
[1761237012624,0.001,3875.9,3875.8,6.4089916]
[1761237013312,0.001,3875.9,3875.8,6.8616916]
[1761237013516,0.001,3875.9,3875.8,7.9641916]
[1761237013717,0.001,3875.9,3875.8,10.1163045]
[1761237013895,0.001,3875.9,3875.8,10.2451045]
[1761237015295,0.001,3875.9,3875.8,9.7924045]
[1761237015514,0.001,3875.9,3875.8,4.64219249]
[1761237016030,1.79597274,3877.7,3877.6,2.57891479]
[1761237016258,9.61642871,3879.7,3877.6,2.57891479]
[1761237016259,0.2137,3879.1,3877.7,4.64091852]
[1761237016455,0.2137,3879.1,3878.9,5.90004958]
[1761237016759,0.2137,3879.1,3879.0,3.08486401]
[1761237016933,3.308,3879.4,3879.3,2.57778465]
[1761237017136,3.308,3879.4,3879.0,0.50688]
[1761237017376,3.32199911,3879.1,3877.1,0.2261]
[1761237017540,1.5552,3879.0,3877.5,3.08580441]
[1761237017858,1.5552,3879.0,3878.2,2.57849559]
[1761237018022,1.5552,3879.0,3878.1,2.57857374]
[1761237018223,1.50346782,3878.9,3877.4,3.32199911]
[1761237018423,1.50346782,3878.9,3878.0,2.57859997]
[1761237018728,0.4555,3878.8,3878.1,2.57857969]
[1761237018931,3.61386678,3878.7,3878.1,2.57857969]
[1761237019126,3.61386678,3878.7,3878.2,2.57851131]
[1761237019440,0.4555,3878.6,3878.2,2.57851131]
[1761237019653,0.4555,3878.6,3878.3,2.57844606]
[1761237020003,0.37466652,3878.5,3878.2,2.57849904]
[1761237020467,0.4555,3878.4,3878.3,2.57843759]
[1761237021362,0.4555,3878.4,3878.1,2.57852466]
[1761237021567,0.4555,3878.4,3878.2,2.57846049]
[1761237021865,0.4555,3878.4,3878.3,2.57844932]
[1761237022169,0.76136678,3878.4,3878.3,2.57844932]
[1761237023470,0.76136678,3878.4,3878.2,2.5785014]
[1761237023644,0.30586678,3878.4,3878.3,2.57844932]
[1761237025109,0.2192,3878.9,3878.4,0.50688]
[1761237025311,2.566,3878.8,3878.7,2.57818341]
[1761237025612,0.2192,3879.5,3879.2,2.57782163]
[1761237025766,0.836,3879.4,3878.9,2.57805028]
[1761237025972,0.1288,3879.0,3878.9,2.57805028]
[1761237026799,1.7928,3879.0,3878.9,2.57805028]
[1761237027109,1.97208,3879.0,3878.9,2.57805028]
[1761237027497,0.30808,3879.0,3878.9,2.57805028]
[1761237027689,2.7508,3879.0,3878.9,2.57805028]
[1761237028274,2.7508,3879.0,3877.3,2.57911433]
[1761237028516,0.2353,3878.9,3878.4,2.57835563]
[1761237028701,1.7905,3878.9,3877.3,0.50688]
[1761237029009,1.7905,3878.9,3878.4,2.57836561]
[1761237029417,0.1288,3878.5,3878.4,2.57836561]
[1761237029782,0.1288,3878.5,3878.3,2.57842378]
[1761237030117,0.2161,3877.8,3876.7,0.446]
[1761237030319,3.305,3877.7,3876.4,0.1288]
[1761237030620,0.1288,3876.6,3876.5,3.08652658]
[1761237030799,0.1288,3876.6,3876.5,2.57964658]
[1761237031513,0.1288,3876.6,3876.5,3.08652658]
[1761237033923,0.1288,3876.6,3876.5,3.53252658]
[1761237034624,0.1288,3876.6,3876.5,3.08652658]
[1761237039607,0.2161,3877.8,3877.7,2.57884828]
[1761237039897,3.5191,3877.8,3877.7,2.57884828]
[1761237040204,3.6479,3877.8,3877.7,2.57884828]
[1761237040411,0.3449,3877.8,3877.7,2.57884828]
[1761237040598,3.6479,3877.8,3877.7,2.57884828]
[1761237040793,3.4318,3877.8,3877.7,2.57884828]
[1761237041115,0.1288,3877.8,3877.7,2.57884828]
[1761237041499,0.3449,3877.8,3877.7,2.57884828]
[1761237041702,0.70969,3877.8,3877.7,2.57884828]
[1761237041996,0.3449,3877.8,3876.2,2.57984624]
[1761237042331,1.7713,3877.8,3877.3,2.57908533]
[1761237042518,0.1288,3877.4,3877.3,2.57908533]
[1761237042684,0.1288,3877.4,3876.9,2.57931572]
[1761237042887,1.7713,3877.8,3876.7,0.50688]
[1761237043111,1.7713,3877.8,3877.3,2.5790786]
[1761237043316,1.7713,3877.8,3877.4,2.57902398]
[1761237043496,1.7713,3877.8,3877.3,2.57909339]
[1761237044023,0.1288,3877.4,3877.3,2.57909339]
[1761237047921,0.77443437,3878.8,3877.9,2.57865183]
[1761237048108,1.5552,3878.6,3878.0,2.57862938]
[1761237048308,3.302,3878.7,3878.0,2.57862938]
[1761237048515,0.1288,3878.1,3878.0,2.57862938]
[1761237048715,3.4308,3878.1,3878.0,2.57862938]
[1761237049625,3.4318,3878.1,3878.0,2.57862938]
[1761237049792,3.4318,3878.1,3877.9,2.57869124]
[1761237049995,3.5285,3878.1,3877.9,2.57869124]
[1761237050207,0.3543,3878.0,3877.9,2.57869124]
[1761237050421,0.1288,3878.0,3877.9,2.57869124]
[1761237050721,3.4308,3878.0,3877.9,2.57869124]
[1761237050925,3.99948,3878.0,3877.2,0.2354]
[1761237051092,3.99948,3878.0,3876.9,0.446]
[1761237051093,0.4416,3877.9,3877.7,2.57884526]
[1761237051292,0.1288,3877.8,3877.7,2.57884526]
[1761237051493,0.3543,3877.8,3877.1,2.5792208]
[1761237051695,0.1288,3877.2,3877.1,3.08612737]
[1761237054136,3.301,3877.4,3877.3,2.57911433]
[1761237054590,3.4298,3877.4,3876.5,0.50888]
[1761237054796,3.5265,3877.4,3877.2,2.57913909]
[1761237055092,0.1288,3877.3,3877.2,2.57913909]
[1761237056193,3.4278,3877.3,3877.2,3.53201909]
[1761237056427,3.4268,3877.3,3877.2,3.53201909]
[1761237057207,0.1288,3877.3,3877.2,4.16669103]
[1761237057395,0.001,3878.1,3878.0,2.57864878]
[1761237057595,3.299,3878.1,3878.0,2.57864878]
[1761237057824,3.6533,3878.1,3878.0,2.57864878]
[1761237058132,3.4278,3878.1,3878.0,2.57864878]
[1761237059406,0.1298,3878.1,3878.0,2.57864878]
[1761237059606,3.4268,3878.1,3878.0,2.57864878]
[1761237060105,3.4268,3878.1,3877.2,0.63568]
[1761237060106,3.6523,3878.1,3877.9,2.57865448]
[1761237060300,3.88873,3878.1,3878.0,2.57864878]
[1761237060500,4.01753,3878.1,3878.0,2.57864878]
[1761237060731,4.01753,3878.1,3877.8,2.57871863]
[1761237060929,3.298,3878.1,3878.0,2.57864878]
[1761237061129,0.001,3878.1,3878.0,2.57864878]
[1761237061361,3.4268,3878.1,3878.0,2.57864878]
[1761237061514,0.1298,3878.1,3878.0,2.57864878]
[1761237061852,3.4258,3878.1,3878.0,2.57864878]
[1761237062218,0.1298,3878.1,3878.0,2.57864878]
[1761237062553,3.4258,3878.1,3878.0,2.57864878]
[1761237062752,0.001,3878.1,3878.0,3.62704888]
[1761237062955,0.001,3878.1,3878.0,4.58182387]
[1761237063126,0.001,3878.1,3878.0,6.16281035]
[1761237063456,0.001,3878.1,3878.0,6.13702387]
[1761237064013,0.001,3878.1,3878.0,5.5851624]
[1761237065128,0.001,3878.1,3878.0,3.08552878]
[1761237065529,0.001,3878.1,3878.0,3.51422878]
[1761237066055,0.001,3878.1,3878.0,3.08552878]
[1761237066555,0.001,3878.1,3877.0,3.00801139]
[1761237066754,0.2337,3878.1,3878.0,2.57864878]
[1761237066954,0.2337,3878.1,3877.3,2.57907842]
[1761237067143,0.2337,3878.1,3877.4,0.50688]
[1761237067322,0.001,3878.1,3877.4,0.93558]
[1761237067522,0.001,3878.1,3877.9,2.57867056]
[1761237067723,0.001,3878.1,3878.0,2.57864878]
[1761237068033,0.2337,3878.1,3878.0,2.57864878]
[1761237068547,0.2337,3878.1,3877.9,2.57870265]
[1761237068729,0.2337,3878.1,3878.0,2.57864878]
[1761237068940,0.2337,3878.1,3877.9,2.57870192]
[1761237069271,0.2337,3878.1,3877.8,2.57873105]
[1761237069764,0.2337,3878.1,3877.8,2.5787318]
[1761237069969,0.2337,3878.1,3877.9,2.57871528]
[1761237070167,0.2337,3878.1,3877.8,2.57876631]
[1761237070773,0.2337,3878.1,3877.9,2.57870274]
[1761237070975,0.2337,3878.1,3878.0,2.57864878]
[1761237071271,0.001,3878.1,3878.0,2.57864878]
[1761237071443,0.001,3878.1,3878.0,3.08552878]
[1761237071444,1.344,3878.1,3878.0,3.08552878]
[1761237071645,1.344,3878.1,3878.0,2.57864878]
[1761237072059,1.4784,3878.1,3877.9,2.57870136]
[1761237072264,1.4784,3878.1,3878.0,2.57864878]
[1761237072850,1.6072,3878.1,3878.0,2.57864878]
[1761237073974,1.8398,3878.1,3878.0,2.57864878]
[1761237074477,1.8398,3878.1,3877.4,2.5790317]
[1761237074778,0.1288,3877.8,3877.6,2.57886163]
[1761237074973,0.63068,3878.0,3877.6,2.57886163]
[1761237074974,0.4467,3877.7,3877.6,2.57886163]
[1761237075151,0.4467,3877.7,3877.5,2.57893836]
[1761237075152,0.5755,3877.7,3877.5,2.57893836]
[1761237075352,0.1288,3877.6,3877.5,2.57893836]
[1761237076878,0.001,3878.1,3878.0,2.57864878]
[1761237077179,3.2871,3878.1,3878.0,2.57864878]
[1761237077361,3.74461,3878.1,3878.0,2.57864878]
[1761237077873,3.52351,3878.1,3878.0,2.57864878]
[1761237078682,3.74461,3878.1,3878.0,2.57864878]
[1761237079085,3.52351,3878.1,3878.0,2.57864878]
[1761237079257,3.74461,3878.1,3878.0,2.57864878]
[1761237079583,3.52351,3878.1,3878.0,2.57864878]
[1761237079948,3.4208,3878.1,3878.0,3.00734878]
[1761237080139,3.4208,3878.1,3878.0,2.57864878]
[1761237080667,0.1298,3878.1,3878.0,2.57864878]
[1761237080868,3.4208,3878.1,3878.0,2.57864878]
[1761237081252,0.1298,3878.1,3878.0,3.00734878]
[1761237081452,3.4208,3878.1,3878.0,2.57864878]
[1761237081657,0.1298,3878.1,3878.0,3.00734878]
[1761237081885,3.4208,3878.1,3878.0,3.00734878]
[1761237082183,0.1298,3878.1,3878.0,3.00734878]
[1761237082356,0.1298,3878.1,3878.0,4.33070924]
[1761237082681,0.001,3878.1,3878.0,4.33070924]
[1761237084456,0.001,3878.1,3878.0,4.45950924]
[1761237084655,0.001,3878.1,3878.0,4.48529572]
[1761237085397,0.001,3878.1,3878.0,4.45950924]
[1761237088359,0.001,3878.1,3878.0,13.91584112]
[1761237088565,0.001,3878.1,3878.0,14.46763191]
[1761237089802,0.001,3878.1,3878.0,15.89403191]
[1761237089965,0.001,3878.1,3878.0,16.02283191]
[1761237090567,0.001,3878.1,3878.0,19.31183191]
[1761237090763,0.001,3878.1,3878.0,13.83625616]
[1761237097020,0.001,3878.1,3878.0,13.28446537]
[1761237097511,0.001,3878.1,3878.0,13.28346537]
[1761237098607,0.001,3878.1,3878.0,9.56676537]
[1761237098820,0.001,3878.1,3878.0,8.75028491]
[1761237099021,0.001,3878.1,3878.0,9.22048491]
[1761237102479,0.001,3878.1,3878.0,12.50848491]
[1761237103193,0.001,3878.1,3878.0,9.22048491]
[1761237104517,0.001,3878.1,3878.0,8.75028491]
[1761237104719,0.001,3878.1,3878.0,10.46985899]
[1761237106814,0.001,3878.1,3878.0,8.62148491]
[1761237107117,0.001,3878.1,3878.0,3.08552878]
[1761237107118,0.2395,3878.1,3878.0,3.08552878]
[1761237107686,0.2395,3878.1,3878.0,2.57864878]
[1761237107889,0.3683,3878.1,3878.0,0.50688]
[1761237108089,0.2395,3878.1,3878.0,2.57864878]
[1761237108813,0.2395,3878.1,3878.0,3.08552878]
[1761237108997,0.001,3878.1,3878.0,3.08552878]
[1761237109816,0.001,3878.1,3878.0,3.55572878]
[1761237110020,0.001,3878.1,3878.0,4.5672502]
[1761237111096,0.001,3878.1,3878.0,5.12047093]
[1761237111297,0.001,3878.1,3878.0,3.08552878]
[1761237111549,0.001,3878.1,3878.0,3.55572878]
[1761237111722,0.001,3878.1,3878.0,4.10896314]
[1761237114298,0.001,3878.1,3878.0,4.13474962]
[1761237114502,0.001,3878.1,3878.0,4.10896314]
[1761237115034,0.001,3878.1,3878.0,5.57310641]
[1761237115331,0.001,3878.1,3878.0,7.12830641]
[1761237115840,0.001,3878.1,3878.0,10.41630641]
[1761237115998,0.001,3878.1,3878.0,9.94610641]
[1761237116200,0.001,3878.1,3878.0,10.41630641]
[1761237118239,0.001,3878.1,3878.0,10.54510641]
[1761237118835,0.001,3878.1,3878.0,10.07490641]
[1761237119602,0.001,3878.1,3878.0,10.51050641]
[1761237120761,0.001,3878.1,3878.0,10.07490641]
[1761237121058,0.001,3878.1,3878.0,5.23170641]
[1761237121200,0.2395,3878.1,3878.0,2.57864878]
[1761237121702,0.2395,3878.1,3878.0,3.08552878]
[1761237124053,0.001,3878.1,3878.0,3.08552878]
[1761237125336,0.001,3878.1,3878.0,3.11131526]
[1761237125539,0.001,3878.1,3878.0,3.08552878]
[1761237126514,0.001,3878.1,3878.0,3.11131526]
[1761237126806,0.001,3878.1,3878.0,5.58461113]
[1761237128746,0.001,3878.1,3878.0,8.90178406]
[1761237129753,0.001,3878.1,3878.0,9.59430201]
[1761237129931,0.001,3878.1,3878.0,12.91147494]
[1761237130109,0.001,3878.1,3878.0,12.21895699]
[1761237131245,0.001,3878.1,3878.0,13.26553937]
[1761237131438,0.001,3878.1,3878.0,13.27038371]
[1761237132239,0.001,3878.1,3878.0,9.95321078]
[1761237132608,0.001,3878.1,3878.0,9.51761078]
[1761237132812,0.001,3878.1,3878.0,9.03058406]
[1761237133514,0.001,3878.1,3878.0,9.95321078]
[1761237133717,0.001,3878.1,3878.0,9.03058406]
[1761237137259,1e-08,3878.9,3878.8,3.08499694]
[1761237137470,1e-08,3878.9,3878.8,6.40216987]
[1761237137950,1e-08,3878.9,3878.8,6.83776987]
[1761237138155,1e-08,3878.9,3878.8,6.40216987]
[1761237138349,1e-08,3878.9,3878.8,7.95736987]
[1761237138867,0.23850001,3878.9,3878.8,7.95736987]
[1761237139073,0.23850001,3878.9,3878.8,4.64019694]
[1761237139555,1e-08,3878.9,3878.8,4.64019694]
[1761237139761,1e-08,3878.9,3878.8,5.69375353]
[1761237140464,0.23850001,3878.9,3878.8,4.64019694]
[1761237141839,1e-08,3878.9,3878.8,4.64019694]
[1761237142162,0.23850001,3878.9,3878.8,4.64019694]
[1761237143063,0.23850001,3878.9,3878.8,3.08499694]
[1761237143761,1e-08,3878.9,3878.8,6.40216987]
[1761237144072,1e-08,3878.9,3878.8,7.45572646]
[1761237147075,0.23850001,3878.9,3878.8,7.45572646]
[1761237147278,0.23850001,3878.9,3878.8,3.08499694]
[1761237150177,1e-08,3878.9,3878.8,3.08499694]
[1761237150568,1e-08,3878.9,3878.8,3.1107781]
[1761237150877,1e-08,3878.9,3878.8,3.52959694]
[1761237151067,1e-08,3878.9,3878.8,4.48497353]
[1761237152382,0.215,3879.6,3878.8,4.48497353]
[1761237152383,0.9254568,3880.7,3879.7,2.57751888]
[1761237152548,0.1405,3880.3,3879.7,3.08439888]
[1761237152867,0.1,3879.8,3879.7,3.08439888]
[1761237153987,0.001,3879.8,3879.7,6.40157181]
[1761237154762,0.1,3879.8,3879.7,6.40157181]
[1761237154964,0.1,3879.8,3879.7,3.08439888]
[1761237155163,0.2288,3879.8,3879.7,3.08439888]
[1761237158161,0.2288,3879.8,3879.7,2.57751888]
[1761237160017,0.1298,3879.8,3879.7,3.08439888]
[1761237160175,3.5158,3879.8,3879.7,3.08439888]
[1761237160663,3.4168,3879.8,3879.7,3.08439888]
[1761237163664,0.1298,3879.8,3879.7,3.08439888]
[1761237164065,0.001,3879.8,3879.7,7.41237142]
[1761237164770,0.001,3879.8,3879.7,6.96777142]
[1761237169582,0.001,3879.8,3879.7,7.41237142]
[1761237172387,0.001,3879.8,3879.7,5.65039849]
[1761237174378,0.001,3879.8,3879.7,5.20579849]
[1761237176011,0.001,3879.8,3879.7,4.13271888]
[1761237176180,0.001,3879.8,3879.7,4.63959888]
[1761237177423,0.001,3879.8,3879.7,3.08439888]
[1761237178222,0.001,3879.8,3879.7,3.11017406]
[1761237178538,0.001,3879.8,3879.7,3.08439888]
[1761237179216,0.1038,3879.8,3879.7,3.08439888]
[1761237179395,0.1038,3879.8,3879.7,2.57751888]
[1761237181399,0.001,3879.8,3879.7,2.57751888]
[1761237181711,0.1038,3879.8,3879.7,2.57751888]
[1761237182094,0.001,3879.8,3879.7,2.57751888]
[1761237182327,0.001,3879.8,3879.7,4.13271888]
[1761237182507,0.001,3879.8,3879.7,4.63959888]
[1761237182918,0.1,3879.8,3879.7,3.08439888]
[1761237183116,0.001,3879.8,3879.7,3.08439888]
[1761237183898,0.1,3879.8,3879.7,3.08439888]
[1761237184298,0.001,3879.8,3879.7,3.08439888]
[1761237184526,0.3146,3879.8,3879.7,3.08439888]
[1761237185574,0.001,3879.8,3879.7,3.08439888]
[1761237185942,0.1298,3879.8,3879.7,3.08439888]
[1761237188088,0.1298,3879.8,3879.7,2.57751888]
[1761237188250,0.23,3879.8,3879.7,3.08439888]
[1761237188887,0.23,3879.8,3879.7,2.57751888]
[1761237191778,0.1298,3879.8,3879.7,2.57751888]
[1761237192279,0.23,3879.8,3879.7,2.57751888]
[1761237192461,0.1298,3879.8,3879.7,3.08439888]
[1761237193077,0.1298,3879.8,3879.7,3.52139888]
[1761237193487,0.1298,3879.8,3879.7,3.08439888]
[1761237193860,1e-08,3879.8,3879.7,3.52139888]
[1761237194171,1e-08,3879.8,3879.7,4.13149849]
[1761237194388,1e-08,3879.8,3879.7,3.69449849]
[1761237194595,1e-08,3879.8,3879.7,3.08439888]
[1761237198552,1e-08,3879.8,3879.7,3.52139888]
[1761237199648,1e-08,3879.8,3879.7,3.08439888]
[1761237200486,0.10130001,3879.8,3879.7,3.08439888]
[1761237200811,0.23010001,3879.8,3879.7,3.08439888]
[1761237201010,0.12880001,3879.8,3879.7,3.08439888]
[1761237206520,0.09900001,3879.8,3879.6,0.002]
[1761237206733,1e-08,3879.8,3879.7,2.57751888]
[1761237207021,3.28500001,3879.8,3879.7,2.57751888]
[1761237207422,1e-08,3879.8,3879.7,3.08439888]
[1761237207723,3.38400001,3879.8,3879.7,3.08439888]
[1761237207928,3.38500001,3879.8,3879.7,3.08439888]
[1761237208137,3.74507001,3879.8,3879.7,2.57751888]
[1761237208301,3.74507001,3879.8,3879.6,0.002]
[1761237208491,0.099,3879.7,3879.6,0.002]
[1761237208834,0.4194633,3879.7,3879.6,0.002]
[1761237210126,1.9746633,3879.7,3879.6,0.002]
[1761237210303,2.90062176,3879.7,3879.6,0.002]
[1761237210723,3.35845574,3879.7,3879.6,0.002]
[1761237211206,3.36263022,3879.7,3879.6,0.002]
[1761237211943,1.9746633,3879.7,3879.6,0.002]
[1761237214344,1.5552,3879.5,3879.3,0.002]
[1761237214504,8.82026496,3879.4,3879.3,0.002]
[1761237214903,8.91926496,3879.4,3879.3,0.002]
[1761237216238,10.30276541,3879.4,3879.3,0.002]
[1761237216653,10.43156541,3879.4,3879.3,0.002]
[1761237216859,10.85527969,3879.4,3879.3,0.002]
[1761237218067,9.47177924,3879.4,3879.3,0.002]
[1761237219136,6.18677924,3879.4,3879.3,0.002]
[1761237219469,9.36952826,3879.4,3879.3,0.002]
[1761237219765,7.81432826,3879.4,3879.3,0.002]
[1761237220463,2.1034633,3879.4,3879.3,0.002]
[1761237220665,5.3894633,3879.4,3879.3,0.002]
[1761237221448,9.36952826,3879.4,3879.3,0.002]
[1761237223875,2.1034633,3879.4,3879.3,0.002]
[1761237224079,5.3894633,3879.4,3879.3,0.002]
[1761237227772,9.36952826,3879.4,3879.3,0.002]
[1761237229371,15.75952826,3879.4,3879.3,0.002]
[1761237229574,17.14302871,3879.4,3879.3,0.002]
[1761237229752,15.86278457,3879.4,3879.3,0.002]
[1761237232290,21.15550277,3879.4,3879.3,0.002]
[1761237232484,18.57778457,3879.4,3879.3,0.002]
[1761237232689,15.86278457,3879.4,3879.3,0.002]
[1761237232853,4.3692,3879.3,3878.9,0.002]
[1761237233058,4.3692,3879.3,3878.5,0.002]
[1761237233059,1.5552,3878.9,3878.5,0.002]
[1761237233390,5.66406496,3878.6,3878.5,0.002]
[1761237233577,1.5552,3878.2,3877.1,0.002]
[1761237233784,1.5552,3878.0,3877.1,0.002]
[1761237233977,5.76946496,3877.2,3877.1,0.002]
[1761237234286,9.05546496,3877.2,3877.1,0.002]